Cogmind - Beta 17 @@@ ROGUE MODE // 2026.06.24 @ 00:03:04 Player: Petvaria Result: Destroyed by P-70 Sage with Tesla Rifle Performance ------------- Evolutions (9) 4500 Regions Visited (14) 2800 Robots Destroyed (383) 1915 Value Destroyed (16647) 16647 Prototype IDs (36) 720 Alien Tech Used (0) 0 Bonus (25866) 25866 TOTAL SCORE: 52448 Bonus ------- Triggered High Security 500 High Alert Combat Kills 4380 Follower Combat Kills 805 Prayed to X0-1V1 5000 Major X0-1V1 Interference 12200 Met R17 at Cetus 500 Met R17 at Research 2000 Scanned by Researcher 500 Friendly Fire -19 Cogmind --------- Core Integrity 0/1680 Matter 290/300 Energy 100/100 System Corruption 17% Temperature Cool (0) Movement Core (50) Location -1/Access Parts ------- > --- POWER (3) -------- (None) > --- PROPULSION (7) --- (None) > --- UTILITY (11) ----- (None) > --- WEAPON (4) ------- (None) > --- INVENTORY (5) ---- Faulty Cooled Impulse Thruster Coil Gun Heavy Machine Gun KE Penetrator Railgun Peak State ------------ > --- POWER ------------ Graviton Reactor Particle-Fission Reactor > --- PROPULSION ------- Enhanced Armored Heavy Treads Experimental Biometal Leg Treaded Centrium-FC Exoskeleton > --- UTILITY ---------- Armored Scrap Engine Advanced Cryofiber Web Advanced Heat Sink High-capacity Storage Unit Advanced Trap Scanner Core Analyzer Core Analyzer Advanced Weapon Cycler Improved Thermal Defense Suite X0-1V1's Piety Tracker > --- WEAPON ----------- Railgun Perforator Thermic Construct/C > --- INVENTORY -------- Particle Reactor Light Quantum Reactor Light Quantum Reactor Light Quantum Reactor Centrium Heavy Treads Centrium Heavy Treads Advanced Power Amplifier Advanced Cryofiber Web Compact Matter Pod Advanced Weapon Cycler High-powered Tractor Beam Heavy Beamcaster Compact HERF Cannon Coil Gun Heavy Machine Gun Railgun Micro-nuke Launcher Z-bomb Delivery System [Rating: 209] Favorites ----------- Power Deuterium Engine Engine Deuterium Engine Power Core Nuclear Core Reactor Constructs Propulsion Light Treads Treads Light Treads Leg Carbon-fiber Leg Flight Unit Cooled Impulse Thruster Utility X0-1V1's Piety Tracker Device X0-1V1's Piety Tracker Storage Huge Storage Unit Processor Core Analyzer Protection Centrium Medium Armor Plating Weapon Improved Light Cannon Energy Gun Medium Laser Energy Cannon Plasma Cannon Ballistic Gun Coil Gun Ballistic Cannon Improved Light Cannon Launcher Z-bomb Delivery System Special Melee Weapon Chaos Jack Build | -11 -10 -9 -8 -8 -8 -6 -6 -6 -5 -4 -3 -2 -2 -1 ------- Run | Yrd Mat Mat Mat Sto Rec Fac Ext Cet Fac Fac Res Res Tes Acc Slots Evolved 18 | . . 2 2 . . 4 . . 2 2 2 2 . 2 Power 1 | . . . . . . . . . . . . 1 . . Propulsion 6 | . . 1 1 . . 2 . . . 1 . 1 . . Utility 8 | . . 1 1 . . 2 . . 1 1 . . . 2 Weapon 3 | . . . . . . . . . 1 . 2 . . . Parts Attached 169 | 7 8 6 20 14 1 17 15 11 6 27 9 . 11 17 Power 24 | 1 1 1 3 2 . 2 2 3 1 2 3 . . 3 Engine 9 | 1 1 1 1 2 . 1 2 . . . . . . . Core 4 | . . . 2 . . 1 . 1 . . . . . . Reactor 11 | . . . . . . . . 2 1 2 3 . . 3 Propulsion 38 | 2 2 3 7 3 1 1 7 1 . 2 . . 2 7 Treads 26 | 2 2 3 7 3 1 1 3 1 . 2 . . 1 . Leg 5 | . . . . . . . 4 . . . . . 1 . Wheel . | . . . . . . . . . . . . . . . Hover . | . . . . . . . . . . . . . . . Flight 7 | . . . . . . . . . . . . . . 7 Utility 58 | 2 3 1 5 1 . 7 4 5 5 14 5 . 1 5 Device 39 | 1 1 . 3 . . 5 4 3 3 10 5 . . 4 Storage 6 | 1 1 1 1 . . 1 . . . 1 . . . . Processor 4 | . . . . . . . . . . 2 . . 1 1 Hackware . | . . . . . . . . . . . . . . . Protection 9 | . 1 . 1 1 . 1 . 2 2 1 . . . . Artifact . | . . . . . . . . . . . . . . . Weapon 49 | 2 2 1 5 8 . 7 2 2 . 9 1 . 8 2 Energy Gun 7 | 1 . . 1 4 . . . . . . . . 1 . Energy Cannon 15 | . . . 2 . . 4 2 1 . 2 . . 3 1 Ballistic Gun 16 | 1 . 1 1 3 . 2 . 1 . 3 1 . 2 1 Ballistic Cannon 6 | . 2 . 1 . . 1 . . . 1 . . 1 . Launcher 4 | . . . . 1 . . . . . 2 . . 1 . Special Weapon . | . . . . . . . . . . . . . . . Impact Weapon . | . . . . . . . . . . . . . . . Slashing Weapon . | . . . . . . . . . . . . . . . Piercing Weapon . | . . . . . . . . . . . . . . . Special Melee Weapon 1 | . . . . . . . . . . 1 . . . . Unidentified Prototypes 28 | . 1 1 2 7 . 1 . 3 . 1 3 . 7 2 Corrupted Parts 1 | . . . . . . . . . . 1 . . . . System Corruption 3 | . . . . . . . . . . 3 . . . . Parts Lost 76 | . 2 . 2 . . 4 9 7 4 13 . . . 35 Power 16 | . 1 . . . . . 3 2 2 2 . . . 6 Propulsion 19 | . . . . . . 2 3 . . 1 . . . 13 Utility 28 | . . . 1 . . 1 2 3 2 9 . . . 10 Weapon 13 | . 1 . 1 . . 1 1 2 . 1 . . . 6 Highest Loss Streak 15 | . 1 . 1 . . 1 5 6 2 5 . . . 15 To Critical Strikes 5 | . . . . . . . 1 1 . . . . . 3 Average Backups 19 | 3 9 14 21 23 23 23 21 22 18 20 18 18 17 15 Power 1 | . . . 1 1 1 2 1 . 1 1 1 . 1 1 Propulsion 4 | 1 4 5 7 7 7 1 1 3 3 3 1 1 1 2 Utility 5 | . 1 2 3 5 7 6 7 7 6 6 7 8 7 4 Weapon 7 | . . 5 7 7 7 10 10 9 6 8 8 8 7 6 Tool/Special . | . . . . . . . . . . . . . . . Unused Backups 54 | . 5 3 9 9 1 3 2 6 1 6 3 . 1 5 Power 4 | . . . . . . . 1 . . 2 1 . . . Propulsion 20 | . 4 2 3 . 1 2 1 3 . 3 . . . 1 Utility 10 | . . . 2 4 . 1 . . . . . . . 3 Weapon 20 | . 1 1 4 5 . . . 3 1 1 2 . 1 1 Tool/Special . | . . . . . . . . . . . . . . . Average Slot Usage (%) 84 | . 98 98 98 99 100 81 66 63 66 67 74 71 70 53 Engine 7 | . 16 20 10 9 9 6 6 . . . . . . . Core 3 | . . . 7 8 9 . 2 4 1 4 4 4 . . Reactor 1 | . . . . . . 2 . 4 7 2 4 6 7 5 Treads 18 | . 23 22 27 27 27 22 8 14 6 6 4 4 7 6 Leg 1 | . . . . . . 1 8 . . 3 . . 3 2 Device 17 | . 10 11 18 16 18 18 19 15 19 21 27 26 26 17 Storage 7 | . 14 11 9 9 9 6 6 6 5 5 4 4 4 3 Processor 1 | . . . . . . . . . . 4 4 4 4 7 Protection 4 | . 3 10 7 8 . 1 . 3 5 8 . . . . Energy Gun 1 | . 7 . . . . . . . 4 1 . . . . Energy Cannon 5 | . . . 7 8 9 7 11 7 5 3 . . . 1 Ballistic Gun 5 | . 14 11 1 1 9 5 . 4 5 3 12 13 7 2 Ballistic Cannon 5 | . 6 11 9 9 9 3 . . . 1 3 4 6 3 Peak Build Rating 209 | 7 21 30 44 47 49 110 104 126 139 155 163 170 202 209 Average Rating 76 | 5 14 26 39 45 47 85 88 102 121 143 156 163 186 155 On Entrance 85 | . 7 20 30 42 47 49 98 96 126 112 138 163 163 197 Avg Prop Armor Cover (%) 9 | . . . . . . 10 6 . . 8 8 8 11 10 Naked Turns 57 | . . . . . . . . . . . . . . 57 Heaviest Build 155 | 13 25 59 116 122 114 139 130 145 155 145 97 94 124 135 Greatest Support 219 | 40 40 42 64 62 62 104 178 217 217 217 95 95 219 208 Greatest Overweight (x) 2 | . 1 1 1 1 1 2 2 . 1 1 1 . . 2 Average Overweight (x) . | . . . . 1 1 1 . . . . . . . . Largest Inventory Capacity 25 | 8 10 20 25 25 25 25 25 25 25 25 20 20 20 20 Average Capacity 21 | 6 9 19 22 25 25 25 25 25 25 24 20 20 20 17 Most Carried 25 | 7 10 20 25 25 25 25 25 25 25 25 20 20 20 20 Average Carried 20 | 3 9 15 22 24 24 23 21 24 21 22 19 19 19 16 Final Capacity 25 | 8 10 20 25 25 25 25 25 25 25 20 20 20 20 5 Final Carried 25 | 6 10 20 25 25 25 22 25 23 25 20 20 20 20 5 Scrap Engine Consumption 104 | . . . . . . 14 23 11 6 35 9 . 4 2 Constructs Created 8 | . . . . . . 4 1 . 1 2 . . . . Constructs Modified 48 | . . . . . . 15 6 3 1 15 2 . 5 1 Class Distribution -------------------- 43% | Mutant 19% | Gunner 10% | Construct 6% | Scavenger-Mutant 4% | Scavenger-Construct 4% | Tank 3% | Scavenger-Gunner Dominant Class ---------------- Mutant | -10/Materials Mutant | -9/Materials Mutant | -8/Materials Mutant | -8/Storage Gunner | -8/Recycling Gunner | -6/Factory Construct | -6/Extension Scavenger-Mutant | -6/Cetus Scavenger-Tank | -5/Factory Scavenger-Construct | -4/Factory Scavenger-Gunner | -3/Research Scavenger-Gunner | -2/Research Commander-Tank | -2/Testing Gunner | -1/Access Resources | -11 -10 -9 -8 -8 -8 -6 -6 -6 -5 -4 -3 -2 -2 -1 ----------- Run | Yrd Mat Mat Mat Sto Rec Fac Ext Cet Fac Fac Res Res Tes Acc Matter Collected 12043 | 280 391 690 711 524 254 672 975 268 173 1439 678 . 990 3998 Remotely 3395 | . . . . . . . . . . 460 500 . 240 2195 Salvage Created 19891 | 75 749 937 1013 1543 725 1225 1110 521 489 3253 655 . 1714 5882 Parts 864 | 3 52 69 54 91 38 59 49 17 11 131 22 . 60 208 Haulers Intercepted 21 | . 2 3 5 3 . . . . . 4 1 . . 3 Recyclers Shooed 22 | 1 1 1 1 . 1 1 1 . . 7 . . 4 4 Parts Field Recycled . | . . . . . . . . . . . . . . . Retrieved Matter . | . . . . . . . . . . . . . . . Parts Self-Destructed . | . . . . . . . . . . . . . . . Prevented . | . . . . . . . . . . . . . . . Parts Restored . | . . . . . . . . . . . . . . . Kills | -11 -10 -9 -8 -8 -8 -6 -6 -6 -5 -4 -3 -2 -2 -1 ------- Run | Yrd Mat Mat Mat Sto Rec Fac Ext Cet Fac Fac Res Res Tes Acc Combat Hostiles Destroyed 277 | . 20 19 18 30 6 18 15 7 6 52 7 . 16 63 Guns 61 | . 14 8 5 2 1 3 . 2 2 15 6 . 3 . Cannons 156 | . 6 11 12 21 5 11 10 4 1 12 1 . 9 53 AOE 43 | . . . . 6 . 3 4 . 2 16 . . 4 8 Classes Destroyed 24 | 2 6 2 1 2 2 2 1 . . 1 . . 1 4 Worker 17 | . . 1 . 5 . 1 1 . . 4 . . 3 2 Builder 10 | . . . 1 1 . 1 3 . . 2 . . . 2 Tunneler 4 | 1 . . . . . . . . . 2 . . . 1 Hauler 21 | . 2 3 5 3 . . . . . 4 1 . . 3 Recycler 32 | 1 . 2 2 4 4 3 2 . . 3 . . 6 5 Mechanic 3 | . . . . . . . 1 . . 1 . . . 1 Operator 5 | . 2 1 1 1 . . . . . . . . . . Watcher 11 | . 1 1 1 . . 1 1 1 1 . . . 1 3 Swarmer 57 | . 6 4 3 10 . 5 1 . . 17 . . 4 7 Cutter 2 | . . . . . . . . . . 2 . . . . Saboteur 1 | . . . . . . . . . . . . . . 1 Grunt 97 | . 13 8 8 8 . 7 9 . 2 8 3 . 1 30 Brawler 4 | . . . . 1 . . . . . 1 . . . 2 Duelist 8 | . . 1 1 1 . . 1 . . 2 1 . . 1 Researcher 1 | . . . . . . . . . . . . . 1 . Sentry 46 | . 1 6 6 9 3 2 3 . 4 4 3 . 3 2 Hunter 28 | . . . . 1 . 1 . . . 10 . . . 16 Programmer 21 | . . . . . . 2 . . . 8 . . 8 3 Q-Series 1 | . . . . . . . . . . . . . . 1 Behemoth 2 | . . . . . . 1 1 . . . . . . . Cetus Guard 7 | . . . . . . . . 7 . . . . . . Striker 1 | . . . . . . . . . . . . . . 1 Executioner 1 | . . . . . . . . . . . . . . 1 Scientist 1 | . . . . . 1 . . . . . . . . . Scrapper 3 | . . . . . 3 . . . . . . . . . Best Kill Streak 21 | 2 4 5 5 8 4 5 4 4 2 10 5 . 11 21 Combat Bots Only 13 | . 4 4 3 5 3 5 4 4 2 6 5 . 7 13 Max Kills in Single Turn 5 | 1 2 2 2 2 1 3 3 1 2 4 1 . 4 5 Gunslinging . | . . . . . . . . . . . . . . . Exploded 4 | . . . . 2 . 3 2 . 1 4 . . 2 4 Melee . | . . . . . . . . . . . . . . . Uniques/NPCs Destroyed . | . . . . . . . . . . . . . . . Combat | -11 -10 -9 -8 -8 -8 -6 -6 -6 -5 -4 -3 -2 -2 -1 -------- Run | Yrd Mat Mat Mat Sto Rec Fac Ext Cet Fac Fac Res Res Tes Acc Hostile Shots Fired 3073 | . 85 71 99 85 20 188 291 148 75 644 22 . 57 1288 Missed 971 | . 32 12 32 29 3 57 54 41 25 220 7 . 18 441 Hits 2102 | . 53 59 67 56 17 131 237 107 50 424 15 . 39 847 Melee 28 | . . 1 . 4 . 1 . . 6 7 . . . 9 Projectile 2074 | . 53 58 67 52 17 130 237 107 44 417 15 . 39 838 AOE 21 | . . . . . . 1 . . . . . . . 20 Critical Strikes 95 | . . 1 3 . 2 3 4 12 4 23 1 . 3 39 Part Disruptions 1 | . . . . . . . . . . . . . . 1 Damage Taken 27574 | . 495 513 650 616 336 1653 2294 2731 1042 6420 258 . 611 9955 Core 4109 | . 100 80 50 61 116 147 342 161 49 341 13 . 77 2572 Absorbed by Shields 778 | . . . . . . . . . . 176 . . . 602 Ignored by Resistances 12857 | . 96 213 362 175 120 216 1038 461 311 1491 99 . 300 7975 Regen/Repaired (Parts) 5674 | . . . . . . 706 515 627 442 2400 328 . 357 299 Core Remaining (%) 80 | 100 83 71 . . 63 . . 47 95 72 99 . 94 . Volleys Fired 783 | 4 78 47 75 80 23 53 63 38 23 151 18 . 42 88 Largest 4 | 2 2 2 2 3 3 3 2 2 3 2 4 . 4 1 Hottest 211 | 70 70 56 113 143 143 206 180 180 198 171 189 . 211 120 Shots Fired 1551 | 8 156 94 149 154 57 133 119 77 58 273 68 . 116 89 Gun 577 | 8 133 47 25 13 15 48 . 16 35 125 50 . 62 . Cannon 936 | . 23 47 124 136 42 82 114 61 23 132 18 . 52 82 Launcher 38 | . . . . 5 . 3 5 . . 16 . . 2 7 Special . | . . . . . . . . . . . . . . . Kinetic 944 | 4 102 94 99 74 33 75 16 16 24 158 68 . 110 71 Thermal 563 | 4 54 . 50 75 24 51 98 61 34 99 . . 2 11 Explosive 27 | . . . . 5 . 3 5 . . 5 . . 2 7 Electromagnetic 17 | . . . . . . 4 . . . 11 . . 2 . Robot Hit Streak 74 | 4 14 36 31 74 19 15 15 22 15 21 15 . 20 14 Robot Miss Streak 11 | 1 6 2 3 2 1 4 4 1 3 4 4 . 6 11 Penetration Max 3 | . . . . 1 . 2 . . 1 1 2 . 1 3 Secondary Targets 1 | . 1 . . . . . . . . . . . . . Max Gunslinging Chain 1 | . 1 . . . . . . . . . . . . . Shots Hit Robots 1138 | 5 110 72 103 115 31 75 85 67 43 206 45 . 80 101 Core Hits 725 | 3 41 34 39 56 15 50 39 22 13 113 28 . 56 216 Critical Kills 99 | . . . 1 1 . 2 2 3 4 10 . . 6 70 Critical Parts Destroyed 97 | . . . . 2 . . . 1 2 11 . . 5 76 Critical Strikes 234 | . 3 . 3 7 . 2 2 5 7 33 . . 15 157 Burn 3 | . 3 . . . . . . . . . . . . . Meltdown 15 | . . . 1 1 . 2 2 1 2 6 . . . . Destroy 195 | . . . . 2 . . . 4 5 15 . . 12 157 Blast 21 | . . . 2 4 . . . . . 12 . . 3 . Melee Attacks 22 | . . . . . . . . . . 1 . . . 21 Impact . | . . . . . . . . . . . . . . . Slashing . | . . . . . . . . . . . . . . . Piercing 21 | . . . . . . . . . . . . . . 21 Sneak Attacks 1 | . . . . . . . . . . 1 . . . . Combat Hostiles . | . . . . . . . . . . . . . . . Follow-up Attacks . | . . . . . . . . . . . . . . . Damage Inflicted 36213 | 73 1608 1364 2345 3473 815 2527 3137 2086 1408 8978 1297 . 3193 3909 Guns 9656 | 64 1222 579 364 265 163 674 . 341 651 2829 982 . 1522 . Cannons 18568 | . 371 779 1975 2547 619 1339 2537 1745 639 3517 308 . 908 1284 Explosions 7659 | . . . . 651 . 477 551 . 101 2518 . . 763 2598 Melee 27 | . . . . . . . . . . . . . . 27 Ramming 303 | 9 15 6 6 10 33 37 49 . 17 114 7 . . . Kinetic 16204 | 13 1114 1358 1535 1311 375 1045 238 341 454 3669 1290 . 2430 1031 Thermal 12358 | 51 479 . 804 1501 407 958 2299 1745 836 2975 . . . 303 Explosive 6463 | . . . . 651 . 477 551 . 101 1372 . . 763 2548 Electromagnetic 858 | . . . . . . 10 . . . 848 . . . . Impact . | . . . . . . . . . . . . . . . Slashing . | . . . . . . . . . . . . . . . Piercing 27 | . . . . . . . . . . . . . . 27 Highest Corruption 29 | . . 1 . . 14 9 3 29 15 17 . . 5 17 Average Corruption 5 | . . 1 . . 14 1 2 6 13 11 . . 2 4 Corruption Purged . | . . . . . . . . . . . . . . . Corruption Blocked . | . . . . . . . . . . . . . . . Effects 175 | . . 3 . . 15 5 27 15 6 67 . . 12 25 Message Errors 31 | . . 1 . . 3 1 6 1 1 11 . . 4 3 Matter Fused 35 | . . . . . 2 2 5 4 . 15 . . 3 4 Heat Flow Errors 15 | . . . . . 3 . 1 1 1 7 . . 1 1 Energy Discharges 28 | . . 1 . . 2 1 5 2 . 12 . . 1 4 Parts Rejected 3 | . . . . . . . . . 1 2 . . . . Parts Fused 2 | . . . . . . . 1 1 . . . . . . Data Loss (minor) 22 | . . 1 . . 1 . 5 3 1 7 . . 1 3 Data Loss (major) 12 | . . . . . . 1 3 2 . 4 . . 1 1 Misfires 9 | . . . . . 3 . 1 1 1 2 . . . 1 Alerts 5 | . . . . . . . . . 1 3 . . . 1 Misdirections 6 | . . . . . . . . . . . . . . 6 Weapon Failures 7 | . . . . . 1 . . . . 4 . . 1 1 Overload Shots . | . . . . . . . . . . . . . . . Overflow Damage 944 | . 10 . 30 84 . 14 77 30 . 183 . . 24 492 Projectiles 328 | . 10 . 30 71 . 14 51 30 . 114 . . 8 . Explosions 616 | . . . . 13 . . 26 . . 69 . . 16 492 Melee . | . . . . . . . . . . . . . . . Knockbacks 97 | . 2 4 14 9 3 4 5 . . 15 . . 13 28 Impact 3 | . . . . . . 1 . . . 2 . . . . Kinetic 89 | . 2 4 12 9 3 3 5 . . 13 . . 11 27 Secondary 5 | . . . 2 . . . . . . . . . 2 1 Self-Inflicted Damage 63 | . . . . . . . 13 . . 50 . . . . Shots 4 | . . . . . . . 1 . . 3 . . . . Rammed 31 | 1 7 1 1 3 4 3 2 . 1 7 1 . . . Targets Rammed 34 | 1 7 2 1 3 4 3 4 . 1 7 1 . . . Kicked . | . . . . . . . . . . . . . . . Crushed 3 | . . 1 . . . . 2 . . . . . . . Highest Temperature 688 | 36 168 132 432 494 528 669 688 590 601 199 52 . . 161 Average Temperature 129 | 19 40 37 118 121 119 183 213 151 124 114 36 . . 93 Received Heat Transfer 6449 | . 288 299 522 252 221 177 1254 351 300 1119 72 . 72 1522 Effects 93 | . . . 3 8 7 29 34 5 7 . . . . . Shutdowns 25 | . . . 1 2 3 7 8 2 2 . . . . . Energy Bleed 18 | . . . 2 2 1 5 7 . 1 . . . . . Interference 12 | . . . . 1 . 8 1 . 2 . . . . . Matter Decay 14 | . . . . 1 . 4 7 2 . . . . . . Short Circuit 3 | . . . . 1 . . 2 . . . . . . . Damage (minor) 8 | . . . . 1 1 2 1 1 2 . . . . . Damage (major) 11 | . . . . . 1 3 7 . . . . . . . Damage (core) 2 | . . . . . 1 . 1 . . . . . . . Siege Activations . | . . . . . . . . . . . . . . . Martial Activations . | . . . . . . . . . . . . . . . Shielding Activations . | . . . . . . . . . . . . . . . Robots Disrupted 1 | . . . . . . . . . . 1 . . . . Combat Hostiles 1 | . . . . . . . . . . 1 . . . . Robots Corrupted 2 | . . . . . . . . . . 2 . . . . Combat Hostiles 2 | . . . . . . . . . . 2 . . . . Parts Fried 6 | . . . . . . . . . . 4 . . . 2 Impact Corruptions 1 | . . . . . . . . . . . . . 1 . Robots Melted 16 | . . . 1 1 . 2 2 1 2 7 . . . . Combat Hostiles 13 | . . . 1 1 . 1 1 1 1 7 . . . . Parts Melted 56 | . 2 . 2 5 3 2 6 3 9 24 . . . . Heat Transferred 17866 | 148 1628 . 1600 2861 748 1300 2250 2284 975 3800 . . . 272 Parts Sabotaged 3 | . . . . . . . . . . . . . . 3 Parts Stolen . | . . . . . . . . . . . . . . . Parts Stripped 10 | . . . . . . . . . . . . . . 10 Power Chain Reactions 3 | . . . . . . . . . . 3 . . . . Alert | -11 -10 -9 -8 -8 -8 -6 -6 -6 -5 -4 -3 -2 -2 -1 ------- Run | Yrd Mat Mat Mat Sto Rec Fac Ext Cet Fac Fac Res Res Tes Acc Maximum Alert Level 5 | . . 1 . 3 1 1 1 . 1 4 2 1 3 5 Low Security (%) 65 | 100 100 80 100 53 64 78 82 100 70 28 . . . . Level 1 18 | . . 19 . 32 35 21 17 . 29 35 . 100 51 2 Level 2 7 | . . . . 6 . . . . . 19 100 . 45 2 Level 3 2 | . . . . 8 . . . . . 6 . . 3 18 Level 4 2 | . . . . . . . . . . 9 . . . 20 Level 5 . | . . . . . . . . . . . . . . 3 High Security 3 | . . . . . . . . . . . . . . 51 Max Security . | . . . . . . . . . . . . . . . Peak Influence 2957 | 10 176 381 197 805 330 359 290 157 283 1246 684 360 726 2957 Initial 647 | . . 66 154 76 309 86 95 157 . 133 647 360 202 423 Average 280 | . 97 124 129 270 118 114 88 46 140 401 624 360 407 1705 Influence Increases 11910 | 10 653 748 627 1283 350 746 843 149 403 1879 207 . 778 3234 Destroy 0b10 Robot/C 5920 | . 400 380 360 680 60 360 420 140 120 1120 140 . 380 1360 Destroy 0b10 Robot/NC 560 | 10 25 40 50 75 20 30 45 5 5 90 5 . 50 110 Destroy Leader 1126 | . 86 118 112 136 . 92 74 . 32 178 42 . 42 214 Allied During Kill 504 | . . . . 17 . . 44 . . 21 . . 84 338 Successful Hack 135 | . 19 15 15 . 19 24 7 . . 36 . . . . Disable Machine 465 | . . 15 15 60 . 45 45 . 45 90 . . 75 75 Anti-Garrison Action 150 | . . . . . . . . . 150 . . . . . Destroy Structure 870 | . 3 3 15 43 9 25 44 4 36 254 20 . 147 267 Lose Combat Pursuer 1290 | . 120 15 60 30 . 60 30 . 15 90 . . . 870 Miscellaneous 890 | . . 162 . 242 242 110 134 . . . . . . . Influence Decreases 8953 | 10 495 540 812 671 936 757 757 431 130 919 800 280 432 983 Entered New Map 2687 | . . 92 212 105 484 121 101 125 . 140 586 280 158 283 Time Decay 4961 | 10 475 433 580 526 452 446 426 236 90 589 214 . 254 230 Lost Part 760 | . 20 . 20 . . 40 90 70 40 130 . . . 350 Lost Ally 380 | . . . . 40 . . 140 . . 60 . . 20 120 Purge Threat 165 | . . 15 . . . 150 . . . . . . . . Squads Dispatched 67 | . 5 2 2 3 . 4 5 . 6 10 6 . 4 20 Investigation 4 | . 2 1 . . . 1 . . . . . . . . Extermination 9 | . . . . . . 2 . . . 4 . . 2 1 Reinforcement 27 | . 3 1 2 . . 1 5 . 1 4 3 . 2 5 Assault 21 | . . . . 3 . . . . 2 2 . . . 14 Garrison 6 | . . . . . . . . . 3 . 3 . . . Intercept . | . . . . . . . . . . . . . . . Searches Triggered . | . . . . . . . . . . . . . . . Construction Impeded 5 | . . . . . . . 1 . . . . . . 4 Haulers Reinforced 4 | . . . . . . . . . . 1 2 . . 1 Active Scanning Responses . | . . . . . . . . . . . . . . . Cargo Convoy Interrupts . | . . . . . . . . . . . . . . . Stealth | -11 -10 -9 -8 -8 -8 -6 -6 -6 -5 -4 -3 -2 -2 -1 --------- Run | Yrd Mat Mat Mat Sto Rec Fac Ext Cet Fac Fac Res Res Tes Acc Distress Signals 45 | . 3 2 4 4 . 3 2 2 1 7 5 . 1 11 Communications Jammed . | . . . . . . . . . . . . . . . Distress Signals . | . . . . . . . . . . . . . . . Times Spotted 559 | . 34 29 34 46 6 33 32 11 16 77 8 . 23 210 Peak Tracking Total 40 | . 6 5 5 6 4 6 5 5 6 7 6 . 5 40 Tactical Retreats 37 | . 5 1 3 2 . 2 2 . 1 5 . . . 16 Traps | -11 -10 -9 -8 -8 -8 -6 -6 -6 -5 -4 -3 -2 -2 -1 ------- Run | Yrd Mat Mat Mat Sto Rec Fac Ext Cet Fac Fac Res Res Tes Acc Traps Triggered 14 | . 1 2 . . . 2 1 . . 5 . . . 3 Indirectly 3 | . . . . . . . . . . 3 . . . . Trap Hack Attempts . | . . . . . . . . . . . . . . . Triggered . | . . . . . . . . . . . . . . . Disarmed . | . . . . . . . . . . . . . . . Reprogrammed . | . . . . . . . . . . . . . . . Reused . | . . . . . . . . . . . . . . . Traps Extracted . | . . . . . . . . . . . . . . . Installed . | . . . . . . . . . . . . . . . Triggered . | . . . . . . . . . . . . . . . Machines | -11 -10 -9 -8 -8 -8 -6 -6 -6 -5 -4 -3 -2 -2 -1 ---------- Run | Yrd Mat Mat Mat Sto Rec Fac Ext Cet Fac Fac Res Res Tes Acc Machines Disabled 36 | . . 1 1 4 2 3 4 1 4 6 . . 5 5 Max in Single Turn 2 | . . 1 1 1 1 2 1 1 2 2 . . 1 1 Garrison Access 2 | . . . 1 . . . . . 1 . . . . . Energy Cycler 2 | . . . . . . . 1 . . . . . . 1 Machines Repaired . | . . . . . . . . . . . . . . . Machines Dismantled . | . . . . . . . . . . . . . . . Machines Sabotaged . | . . . . . . . . . . . . . . . Overloaded Fab Kills . | . . . . . . . . . . . . . . . Hacking | -11 -10 -9 -8 -8 -8 -6 -6 -6 -5 -4 -3 -2 -2 -1 --------- Run | Yrd Mat Mat Mat Sto Rec Fac Ext Cet Fac Fac Res Res Tes Acc Machines Accessed 36 | . 5 3 6 2 6 3 4 . . 2 3 . 1 1 Terminals 25 | . 5 2 4 1 5 2 4 . . 1 . . . 1 Fabricators . | . . . . . . . . . . . . . . . Repair Stations 2 | . . . . . . . . . . . 2 . . . Recycling Units . | . . . . . . . . . . . . . . . Scanalyzers 5 | . . 1 1 . . 1 . . . 1 . . 1 . Garrison Access 3 | . . . 1 1 . . . . . . 1 . . . Total Hacks 81 | . 14 9 13 4 16 8 7 . . 5 3 . 1 1 Successful 45 | . 10 7 6 1 11 3 3 . . 4 . . . . Failed 33 | . 4 1 6 3 5 4 4 . . 1 3 . 1 1 Catastrophic 6 | . . . 2 . . 2 . . . . 2 . . . Database Lockouts 3 | . . 1 1 . . 1 . . . . . . . . Manual 43 | . 17 2 5 2 12 . 3 . . 2 . . . . Terminals 53 | . 14 4 6 1 14 4 7 . . 2 . . . 1 Fabricators . | . . . . . . . . . . . . . . . Repair Stations 2 | . . . . . . . . . . . 2 . . . Recycling Units . | . . . . . . . . . . . . . . . Scanalyzers 16 | . . 5 3 . . 4 . . . 3 . . 1 . Garrison Access 8 | . . . 4 3 . . . . . . 1 . . . Terminal Hacks 11 | . 1 2 1 1 3 1 2 . . . . . . . Part Schematic 1 | . . . . . 1 . . . . . . . . . Open Door 3 | . . . . 1 . . 2 . . . . . . . Branch Access Points 1 | . . . 1 . . . . . . . . . . . Unreport Threat 3 | . . 2 . . . 1 . . . . . . . . Hauler Manifests 1 | . 1 . . . . . . . . . . . . . Release Object 2 | . . . . . 2 . . . . . . . . . Fabricator Hacks . | . . . . . . . . . . . . . . . Repair Station Hacks . | . . . . . . . . . . . . . . . Recycling Unit Hacks . | . . . . . . . . . . . . . . . Scanalyzer 9 | . . 3 1 . . 2 . . . 3 . . . . Retrieve Study 9 | . . 3 1 . . 2 . . . 3 . . . . Garrison Access Hacks 1 | . . . 1 . . . . . . . . . . . Seal Access 1 | . . . 1 . . . . . . . . . . . Unauthorized Hacks 24 | . 9 2 3 . 8 . 1 . . 1 . . . . Terminals 24 | . 9 2 3 . 8 . 1 . . 1 . . . . Botnet 11 | . 4 1 . . 4 . 1 . . 1 . . . . Skim 13 | . 5 1 3 . 4 . . . . . . . . . Fabricators . | . . . . . . . . . . . . . . . Repair Stations . | . . . . . . . . . . . . . . . Recycling Units . | . . . . . . . . . . . . . . . Scanalyzers . | . . . . . . . . . . . . . . . Garrison Access . | . . . . . . . . . . . . . . . Data Cores Recovered 3 | . . 1 1 1 . . . . . . . . . . Used . | . . . . . . . . . . . . . . . Hacking Detections 28 | . 4 2 5 2 4 3 2 . . 1 3 . 1 1 Full Trace Events 1 | . . . . . . 1 . . . . . . . . Feedback Events . | . . . . . . . . . . . . . . . Feedback Blocked . | . . . . . . . . . . . . . . . Robot Schematics Acquired . | . . . . . . . . . . . . . . . Robots Built . | . . . . . . . . . . . . . . . Authchips . | . . . . . . . . . . . . . . . Time . | . . . . . . . . . . . . . . . Total Robot Build Rating . | . . . . . . . . . . . . . . . Part Schematics Acquired 2 | . . . . . 1 . . . . . . . 1 . Parts Built . | . . . . . . . . . . . . . . . Authchips . | . . . . . . . . . . . . . . . Time . | . . . . . . . . . . . . . . . Total Part Build Rating . | . . . . . . . . . . . . . . . Part Studies Acquired 9 | . . 3 1 . . 2 . . . 3 . . . . Parts Repaired . | . . . . . . . . . . . . . . . Time . | . . . . . . . . . . . . . . . Parts Recycled . | . . . . . . . . . . . . . . . Recycled Matter . | . . . . . . . . . . . . . . . Retrieved Matter . | . . . . . . . . . . . . . . . Retrieved Components . | . . . . . . . . . . . . . . . Parts Scanalyzed . | . . . . . . . . . . . . . . . Part Schematics Acquired . | . . . . . . . . . . . . . . . Parts Damaged . | . . . . . . . . . . . . . . . Bothacking | -11 -10 -9 -8 -8 -8 -6 -6 -6 -5 -4 -3 -2 -2 -1 ------------ Run | Yrd Mat Mat Mat Sto Rec Fac Ext Cet Fac Fac Res Res Tes Acc Used RIF Installer . | . . . . . . . . . . . . . . . Robots Hacked 1 | . . . . . . . . . . 1 . . . . Non-combat . | . . . . . . . . . . . . . . . Combat 1 | . . . . . . . . . . 1 . . . . Robot Hacks Applied 1 | . . . . . . . . . . 1 . . . . parse_system 1 | . . . . . . . . . . 1 . . . . Relay Couplers Released 1 | . . . . . . . . . 1 . . . . . Machine Destruction 1 | . . . . . . . . . 1 . . . . . Fabnet Peak Effective % . | . . . . . . . . . . . . . . . Robots Rewired 4 | . . . . . . . 4 . . . . . . . Allies Hacked . | . . . . . . . . . . . . . . . Hacks Repelled . | . . . . . . . . . . . . . . . Allies | -11 -10 -9 -8 -8 -8 -6 -6 -6 -5 -4 -3 -2 -2 -1 -------- Run | Yrd Mat Mat Mat Sto Rec Fac Ext Cet Fac Fac Res Res Tes Acc Total Allies 25 | . . . . 2 . . 7 . . 2 . . 4 10 Largest Group 7 | . . . . 2 . . 4 . . 1 . . 4 7 Highest-Rated Group 405 | . . . . 62 . . 140 . . 82 . . 120 405 Highest-Rated Ally 82 | . . . . 31 . . 39 . . 82 . . 30 82 Total Orders 3 | . . . . . . 1 . . . 2 . . . . EXPLORE 3 | . . . . . . 1 . . . 2 . . . . Ally Attacks 181 | . . . . 28 . . 63 . . 19 . . 25 46 Total Damage 4638 | . . . . 390 . . 803 . . 901 . . 439 2105 Kills 31 | . . . . 5 . . 7 . . 6 . . 2 11 Allies Corrupted . | . . . . . . . . . . . . . . . Allies Melted . | . . . . . . . . . . . . . . . X0-1V1 Amusement Gains 447 | . 15 10 . . 97 20 30 10 5 88 35 . 77 60 Good Acts 79 | . 8 7 2 5 . 7 8 . . 15 1 . 4 22 Bad Acts 87 | . 5 5 5 9 4 6 5 7 7 14 1 . 3 16 Intel | -11 -10 -9 -8 -8 -8 -6 -6 -6 -5 -4 -3 -2 -2 -1 ------- Run | Yrd Mat Mat Mat Sto Rec Fac Ext Cet Fac Fac Res Res Tes Acc Active Infowar (turns) 834 | 31 335 . 92 . . . . . . . . . . 376 Traps 468 | . . . 92 . . . . . . . . . . 376 Seismic 366 | 31 335 . . . . . . . . . . . . . Robot Analysis Total . | . . . . . . . . . . . . . . . Derelict Logs Recovered . | . . . . . . . . . . . . . . . Drone Launches 3 | . . . . . . 1 . . . 2 . . . . Drone Recoveries 1 | . . . . . . 1 . . . . . . . . Exploration | -11 -10 -9 -8 -8 -8 -6 -6 -6 -5 -4 -3 -2 -2 -1 ------------- Run | Yrd Mat Mat Mat Sto Rec Fac Ext Cet Fac Fac Res Res Tes Acc Turns Passed 16311 | 138 1794 1447 1794 1464 1819 1655 1477 633 205 1845 448 14 556 1022 Spaces Moved 7239 | 71 698 532 682 475 732 709 694 268 67 851 383 15 376 686 Core 143 | 7 . . . . . . . . . . . . . 136 Treads 5723 | 64 698 532 682 475 732 438 539 268 67 430 . . 365 433 Legs 824 | . . . . . . 218 155 . . 373 78 . . . Wheels 379 | . . . . . . . . . . 48 305 15 11 . Hover . | . . . . . . . . . . . . . . . Flight 170 | . . . . . . 53 . . . . . . . 117 Fastest Speed 20 | 50 160 160 150 238 238 149 128 145 131 83 83 83 83 20 Average Speed 174 | 149 185 233 219 238 238 198 161 145 163 145 90 83 105 88 Slowest Speed 243 | 160 240 240 243 243 238 243 221 150 203 240 135 83 133 150 Overloaded Moves 19 | . . . . . . . . . . . . . . 19 Propulsion Burnouts . | . . . . . . . . . . . . . . . Robots Hopped 1 | . . . . . . . . . . . . . . 1 Potential Cave-ins . | . . . . . . . . . . . . . . . Cave-ins Triggered 1 | . . . . . . . . 1 . . . . . . Exploration Rate (%) 45 | 5 95 57 65 71 96 24 87 68 3 30 9 1 55 22 Regions Visited 14 Branch Regions 5 Pre-discovered Areas 2 | . 2 . . . . . . . . . . . . . Known Exits Taken 6 | . 1 1 1 1 1 . . . . 1 . . . . Unknown Exits Taken 8 | 1 . . . . . 1 1 1 1 . 1 1 1 . Scrap Searched . | . . . . . . . . . . . . . . . Spaces Dug 17 | . . . 1 4 6 1 . . . 5 . . . . Terrain Destroyed 432 | . . 1 14 38 13 26 31 3 21 143 8 . 47 87 Melee . | . . . . . . . . . . . . . . . Projectile 175 | . . 1 14 13 13 22 17 3 9 57 8 . 16 2 AOE 192 | . . . . 25 . 4 14 . 12 86 . . 26 25 Terrain Rammed . | . . . . . . . . . . . . . . . Walls Destroyed . | . . . . . . . . . . . . . . . Machines Disabled . | . . . . . . . . . . . . . . . Actions | -11 -10 -9 -8 -8 -8 -6 -6 -6 -5 -4 -3 -2 -2 -1 --------- Run | Yrd Mat Mat Mat Sto Rec Fac Ext Cet Fac Fac Res Res Tes Acc Total 9501 | 95 1041 650 844 659 763 852 933 443 117 1203 456 16 477 952 Wait 661 | . 231 29 10 44 . 24 70 88 9 81 15 . 17 43 Move 7224 | 70 697 531 681 474 731 708 693 267 67 850 382 14 375 684 Hop 1 | . . . . . . . . . . . . . . 1 Pick Up 201 | 13 11 22 25 11 1 16 20 16 9 31 9 . 4 13 Fast Attach 41 | . 1 . 4 11 . 2 1 1 . 4 3 . 8 6 Attach 105 | 7 1 3 5 1 . 10 17 8 6 26 4 1 2 14 Detach 30 | . . . . . . 6 8 2 . 8 2 1 2 1 Swap 112 | . 6 5 13 11 1 11 6 3 1 24 10 . 14 7 Drop 180 | . 9 11 30 24 3 19 11 17 2 20 12 . 13 9 Fire 783 | 4 78 47 75 80 23 53 63 38 23 151 18 . 42 88 Melee 22 | . . . . . . . . . . 1 . . . 21 Ram . | . . . . . . . . . . . . . . . Kick . | . . . . . . . . . . . . . . . Crush 33 | 1 7 2 1 3 4 3 4 . . 7 1 . . . Escape Stasis 68 | . . . . . . . . 3 . . . . . 65 Rewire 40 | . . . . . . . 40 . . . . . . . Trap . | . . . . . . . . . . . . . . . Miscellaneous . | . . . . . . . . . . . . . . . Route ------- -11/Scrapyard -10/Materials (discovered 5 exits: *Mat x3 / [*Min] / [*Sub]) -9/Materials (discovered 4 exits: *Mat x3 / *Min) -8/Materials (discovered 3 exits: *Fac x2 / *Sto) -8/Storage (discovered 2 exits: Fac / *Rec) -8/Recycling -6/Factory (discovered 2 exits: [*Fac] / *Ext) -6/Extension (discovered 3 exits: [*Fac x2] / *Cet) -6/Cetus (discovered 2 exits: [*Fac] / [*Arc]) -5/Factory (discovered 2 exits: *Fac x2) -4/Factory (discovered 2 exits: *Res x2) -3/Research -2/Research -2/Testing -1/Access History --------- Turn | Location | Event 6 | -11/Scrapyard | Discovered new exit (range 14) 139 | -11/Scrapyard | Entered Materials 311 | -10/Materials | Build established: Mutant 557 | -10/Materials | Discovered new exit (range 14) 633 | -10/Materials | Discovered new exit (range 13) 736 | -10/Materials | Discovered new exit (range 9) 922 | -10/Materials | Prayed at D.C.S.S. Altar Unit 1068 | -10/Materials | Ranged accuracy permanently improved by X0-1V1 (+5%) 1093 | -10/Materials | X0-1V1 sent hostile G-34 Mercenary (x3) 1281 | -10/Materials | Discovered new exit (range 13) 1295 | -10/Materials | Identified exit to Materials 1295 | -10/Materials | X0-1V1 revealed exit location to -9/Materials 1345 | -10/Materials | X0-1V1 mutated your Propulsion slot to Power slot 1468 | -10/Materials | Learned location of Mines (-10) 1533 | -10/Materials | Learned location of 1 exit from Recycling 1622 | -10/Materials | Melee accuracy permanently improved by X0-1V1 (+7%) 1662 | -10/Materials | Learned location of Storage (-8) 1686 | -10/Materials | Learned 2 Storage zone layouts 1724 | -10/Materials | Learned location of 1 exit from Storage 1758 | -10/Materials | Learned location of 1 exit from Recycling 1801 | -10/Materials | Learned location of 1 exit from Recycling 1933 | -10/Materials | Entered another Materials area 1933 | -9/Materials | Evolved 2 slots: Propulsion x1, Utility x1 1934 | -9/Materials | Identified exit to Materials 2062 | -9/Materials | Identified exit to Mines 2062 | -9/Materials | X0-1V1 revealed exit location to -9/Mines 2263 | -9/Materials | X0-1V1 sent you into danger 2667 | -9/Materials | Central database locked down 2957 | -9/Materials | X0-1V1 foreshadows a heat wave 3005 | -9/Materials | X0-1V1 enhanced Transport squad support 3098 | -9/Materials | X0-1V1 added 0b10 threat records associated with you (minor) 3293 | -9/Materials | Ambient heat levels rising (+10) 3380 | -9/Materials | Entered another Materials area 3380 | -8/Materials | Evolved 2 slots: Propulsion x1, Utility x1 3665 | -8/Materials | X0-1V1 sent you to a vault 3872 | -8/Materials | Identified exit to Storage 4030 | -8/Materials | Discovered new exit (range 5) 4368 | -8/Materials | Central database locked down 4424 | -8/Materials | Discovered new exit (range 7) 5174 | -8/Materials | Entered Storage 5175 | -8/Storage | Identified exit to Factory 5176 | -8/Storage | Identified exit to Recycling 5453 | -8/Storage | Core integrity permanently improved by X0-1V1 (+200) 5831 | -8/Storage | Met a pair of Derelict thieves 6124 | -8/Storage | X0-1V1 sent hostile S-10 Pest (x3) 6329 | -8/Storage | X0-1V1 enhanced Transport squad support 6383 | -8/Storage | X0-1V1 mutated your Utility slot to Weapon slot 6431 | -8/Storage | X0-1V1 added 0b10 threat records associated with you (major) 6559 | -8/Storage | X0-1V1 announced a LAN party 6629 | -8/Storage | Used back door to open Recycling access 6638 | -8/Storage | Entered Recycling 6639 | -8/Recycling | Identified exit to Factory 6639 | -8/Recycling | Identified exit to Scraptown 6870 | -8/Recycling | Build established: Gunner 8189 | -8/Recycling | System corruption reached 10% 8200 | -8/Recycling | X0-1V1 added 0b10 threat records associated with you (major) 8248 | -8/Recycling | Scanned before Scraplab entrance 8281 | -8/Recycling | Entered Scraplab 8288 | -8/Recycling | Angered Scraplab inhabitants 8344 | -8/Recycling | Found Prototype Device 8457 | -8/Recycling | Entered Factory 8457 | -6/Factory | Evolved 4 slots: Propulsion x2, Utility x2 8457 | -6/Factory | Identified Scrap Engine 8729 | -6/Factory | Central database locked down 8735 | -6/Factory | X0-1V1 activates XOMVISION 9073 | -6/Factory | X0-1V1 whisked you away to safety 9193 | -6/Factory | Spotted B-75 Beast 9199 | -6/Factory | X0-1V1 announced a LAN party 9283 | -6/Factory | X0-1V1 redirected Transport squads to designated parking area 9445 | -6/Factory | Destroyed B-75 Beast 9599 | -6/Factory | X0-1V1 added 0b10 threat records associated with you (minor) 9756 | -6/Factory | Build established: Construct 9992 | -6/Factory | Discovered new exit (range 14) 10012 | -6/Factory | X0-1V1 mutated your Weapon slot to Propulsion slot 10096 | -6/Factory | Discovered new exit (range 12) 10112 | -6/Factory | Entered Extension 10196 | -6/Extension | Rescued a captive Derelict 10207 | -6/Extension | X0-1V1 announced a LAN party 10322 | -6/Extension | Rescued a captive Derelict 10323 | -6/Extension | Rescued a captive Derelict 10380 | -6/Extension | Core integrity fell below 50% 10409 | -6/Extension | Lost 5 parts (1p2n1u1w) 10654 | -6/Extension | X0-1V1 destroyed Energy Cycler 10654 | -6/Extension | Energy Cycler disabled 10655 | -6/Extension | Rescued a captive Derelict 10657 | -6/Extension | Rescued a captive Derelict 10659 | -6/Extension | Rescued a captive Derelict 10935 | -6/Extension | Build established: Commander-Construct 10997 | -6/Extension | Spotted B-75 Beast 11020 | -6/Extension | Destroyed B-75 Beast 11028 | -6/Extension | X0-1V1 activates XOMVISION 11057 | -6/Extension | Spotted B-75 Beast 11090 | -6/Extension | Discovered new exit (range 15) 11156 | -6/Extension | Extracted ID and sensor layout for unrecognized location from A7's data core 11301 | -6/Extension | Core integrity restored by X0-1V1 (+158) 11322 | -6/Extension | Build established: Construct 11334 | -6/Extension | X0-1V1 added 0b10 threat records associated with you (minor) 11574 | -6/Extension | Discovered new exit (range 10) 11575 | -6/Extension | Discovered new exit (range 6) 11589 | -6/Extension | Entered Cetus 11608 | -6/Cetus | Spotted Cetus Guard 11609 | -6/Cetus | Spotted Cetus Guard 11612 | -6/Cetus | Spotted Cetus Guard 11612 | -6/Cetus | Spotted Cetus Guard 11680 | -6/Cetus | Crushed by falling debris 11682 | -6/Cetus | Destroyed Cetus Guard 11693 | -6/Cetus | Lost 6 parts (2p2u2w) 11694 | -6/Cetus | Destroyed Cetus Guard 11706 | -6/Cetus | Destroyed Cetus Guard 11870 | -6/Cetus | Discovered new exit (range 15) 11893 | -6/Cetus | Spotted Cetus Guard 11893 | -6/Cetus | Spotted Cetus Guard 11937 | -6/Cetus | Spotted Cetus Guard 11942 | -6/Cetus | X0-1V1 vaporized surrounding terrain (radius 21) 11942 | -6/Cetus | Spotted Cetus Guard 11951 | -6/Cetus | Destroyed Cetus Guard 11957 | -6/Cetus | Destroyed Cetus Guard 11966 | -6/Cetus | Destroyed Cetus Guard 11981 | -6/Cetus | Destroyed Cetus Guard 12059 | -6/Cetus | Build established: Scavenger-Mutant 12087 | -6/Cetus | System corruption reached 10% 12145 | -6/Cetus | Discovered new exit (range 15) 12153 | -6/Cetus | Met Revision 17 12222 | -6/Cetus | Entered Factory 12222 | -5/Factory | Evolved 2 slots: Utility x1, Weapon x1 12263 | -5/Factory | System corruption reached 10% 12271 | -5/Factory | X0-1V1 mutated your Propulsion slot to Utility slot 12289 | -5/Factory | X0-1V1 upgraded hostiles (x2) 12298 | -5/Factory | X0-1V1 redirected Transport squads to designated parking area 12417 | -5/Factory | Discovered new exit (range 4) 12420 | -5/Factory | Discovered new exit (range 9) 12427 | -5/Factory | Entered another Factory area 12427 | -4/Factory | Evolved 2 slots: Propulsion x1, Utility x1 12503 | -4/Factory | Identified exit to Research 12503 | -4/Factory | X0-1V1 revealed exit location to -3/Research 12518 | -4/Factory | X0-1V1 mutated your Weapon slot to Utility slot 12955 | -4/Factory | X0-1V1 downgraded hostiles (x1) 13207 | -4/Factory | System corruption reached 10% 13292 | -4/Factory | Build established: Scavenger-Construct 13369 | -4/Factory | X0-1V1 sent allied Knight (x1) 13429 | -4/Factory | X0-1V1 enhanced Transport squad support 13660 | -4/Factory | X0-1V1 sent hostile G-67 Veteran (x6) 13748 | -4/Factory | Lost 5 parts (1p3u1w) 13754 | -4/Factory | X0-1V1 sent allied Cetus Guard (x1) 13773 | -4/Factory | X0-1V1 whisked you away to safety 13875 | -4/Factory | X0-1V1 downgraded hostiles (x2) 13927 | -4/Factory | Lost 3 parts (3u) 14137 | -4/Factory | Spotted B-86 Titan 14177 | -4/Factory | First assault squad dispatched 14254 | -4/Factory | Discovered exit to Research (range 10) 14272 | -4/Factory | Entered Research 14272 | -3/Research | Evolved 2 slots: Weapon x2 14340 | -3/Research | Garrison activated, responded to threat 14405 | -3/Research | X0-1V1 released a cloud of subatomizers 14472 | -3/Research | Revision forces began assault on 0b10 14539 | -3/Research | Met up with Revision 17++ 14561 | -3/Research | Build established: Scavenger-Gunner 14665 | -3/Research | Discovered new exit (range 12) 14720 | -3/Research | Entered another Research area 14720 | -2/Research | Evolved 2 slots: Power x1, Propulsion x1 14722 | -2/Research | Discovered new exit (range 10) 14734 | -2/Research | Entered Testing 14851 | -2/Testing | Found Prototype Energy Cannon 14851 | -2/Testing | Identified Hpw. Disruptor Cannon 14988 | -2/Testing | Found Prototype Energy Cannon 14988 | -2/Testing | Identified Disintegrator 15060 | -2/Testing | Destroyed 7 combat bots 15067 | -2/Testing | Found Prototype Ballistic Cannon 15067 | -2/Testing | Identified Perforator 15073 | -2/Testing | X0-1V1 sent you to a vault 15242 | -2/Testing | Found Prototype Launcher 15243 | -2/Testing | Identified Z-bomb Delivery System 15283 | -2/Testing | Scanned by Researcher 15286 | -2/Testing | Discovered new exit (range 5) 15290 | -2/Testing | Entered Access 15290 | -1/Access | Accompanied by 2 allies 15290 | -1/Access | Evolved 2 slots: Utility x2 15294 | -1/Access | X0-1V1 sent you to a vault 15363 | -1/Access | Destroyed 8 combat bots 15465 | -1/Access | X0-1V1 redirected Transport squads to designated parking area 15555 | -1/Access | X0-1V1 enhanced Transport squad support 15585 | -1/Access | X0-1V1 sent you into danger 15641 | -1/Access | Destroyed 11 combat bots 15665 | -1/Access | X0-1V1 rewrote Terminator 10d IFF filter 15696 | -1/Access | Energy Cycler disabled 15706 | -1/Access | X0-1V1 activates XOMVISION 15788 | -1/Access | High security lockdown imminent 15831 | -1/Access | Destroyed 13 combat bots 15836 | -1/Access | Lost 7 parts (2p5u) 15868 | -1/Access | High security lockdown engaged 15938 | -1/Access | X0-1V1 sent allied Cetus Guard (x3) 15944 | -1/Access | Spotted Striker 15950 | -1/Access | Destroyed Striker 15990 | -1/Access | Lost 3 allies 15996 | -1/Access | Spotted Executioner 16015 | -1/Access | Destroyed Executioner 16021 | -1/Access | Spotted Investigator 16051 | -1/Access | Lost 3 parts (1p2n) 16097 | -1/Access | Spotted B-99 Colossus 16119 | -1/Access | Core integrity fell below 50% 16125 | -1/Access | Spotted Executioner 16173 | -1/Access | System corruption reached 10% 16184 | -1/Access | X0-1V1 downgraded hostiles (x6) 16186 | -1/Access | Lost 15 parts (2p6n4u3w) 16191 | -1/Access | Core integrity fell below 20% 16207 | -1/Access | X0-1V1 rescued you from certain death 16227 | -1/Access | Spotted Striker 16258 | -1/Access | Lost 4 parts (4n) 16258 | -1/Access | Spotted B-99 Colossus 16312 | -1/Access | Destroyed by P-70 Sage with Tesla Rifle Last Messages --------------- System corrupted: Component data lost. Slug penetrates Wall. Penetrated by Slug. X0-1V1: "Don't spend it all in one place." (+31 energy generation) X0-1V1 makes it rain matter. X0-1V1's Piety Tracker suddenly appears amidst shimmering waves of color. Acquired 6 matter. System corrupted: Component data lost. Acquired X0-1V1's Piety Tracker. X0-1V1 ensures you are ready for glorious battle (+Ovr. Quantum Rifle). Critical hit (Impale). System corrupted: Energy discharge (-29). Discarded X0-1V1's Piety Tracker. P-70 Sage resets Striker, system corruption cleaned. Dropped Ovr. Quantum Rifle. X0-1V1 bursts into laughter! Map ----- +----------------------------------------------------+ | ??????????????????????????????????? ## | | ???????????????????????????????????? #? | | ???????????????????????????????????? #? | | ??????????????????????????????????????######+###?? | | ?????????????????????????????????????????????????? | | ?????????????????????????????????????????????????? | | ?????????????????????????????????????????????????? | | ?????????????????????????????????????????????????? | | ?????????????????????????????????????????????????? | | ?????????????????????????????????????????????????? | | ?????????????????????????????????????????????????? | | ?????????????????????????????????????????????????? | | ?????????????????????????????????????????????????? | | ?????????????????????????????????????????????????? | | ?????????????????????????????????????????????????? | | ?????????????????????????????????????????????????? | | ?????????????????????????????????????????????????? | | ?????????????????????????????????????????????????? | | ?????????????????????????????????????????????????? | | ??????????????????????????????##########?????????? | | ??????????????????????????????# ???????#### | | ?????????????????????????????? ????????? | | ??????????????????????????????# ??????????# | | ??????????????????????????????# #???????????# | | ?????????? ############ #???????????# | | ?????????? @ [ #???????????# | | ?????????? K #???????????# | | ?????????? #???????????# | | ??????????? #???????????# | | ??????????? ####????????# | | ???????????? #????????# | | ???????????? ####### pp########## % | | ???????????? ???????# p % | | ??????????????????????+ % | | ??????????????????????# # | | ??????????????????????# #####+############## | | ??????????????????????# +??????????????????? | | ??????????????????????#########??????????????????? | | ?????????????????????????????????????????????????? | | ?????????????????????????????????????????????????# | | ?????????????????????????????????????????????????? | | | | | | | | | | | | | | | | | | | +----------------------------------------------------+ Best States ------------- Heat Dissipation 158 Coolant Potential 80 Energy Generation 65 Energy Capacity 1855 Matter Stores 778 Matter Capacity 800 Sight Range 22 Terrain Scan Density 10 Power Amplification 30 Base Temperature (-) 200 Armor Coverage 675 Resistance: KI 84 Resistance: TH 65 Resistance: EM 40 Weapon Cycling 30 Phase Shifting 15 Evasion (%) 63 Targeting Accuracy 8 Core Analysis 9 Recoil Reduction 6 Item Schematics ----------------- Hvy. Missile Launcher | -8/Recycling | Hacked Exp. Sensor Array | -2/Testing | Archive Robot Schematics ------------------ None Fabricated ------------ Nothing Repaired ---------- Nothing Studied --------- Imp. Light Cannon | -9/Materials | Hacked Hvy. Assault Rifle | -9/Materials | Hacked Mni. Grenade Launcher | -9/Materials | Hacked Plasma Cannon | -8/Materials | Hacked Hvy. Plasma Cannon | -6/Factory | Hacked Angular Momentum Engine | -6/Factory | Hacked Hvy. Machine Gun | -4/Factory | Hacked Adv. Plasma Cannon | -4/Factory | Hacked Enh. Gauss Cannon | -4/Factory | Hacked Alien Tech Used ----------------- None Achievements -------------- Chaos Is Inevitable Left-hand Path Challenges ------------ None Game ------ Seed RemoteMasterBarrier Manual? 0 Play Time 03:15:02 Cumulative 440.5 hours Start 2026.06.23 @ 20:32:19 End 2026.06.24 @ 00:03:04 Sessions 1 Manual Loads 0 Difficulty Rogue Special Mode None Game No. 280 Rogue 280 Adventurer 0 Explorer 0 Win Type - Total 31 Types 15/1/7/2/1/1/1/1/0/2 Lore% 95 Gallery% 89 Achievement% 80 Wizard Run 0 Options --------- Layout 1 ASCII 0 Keyboard 0 Movement Numpad Keybinds 0 Fullscreen 1 Font 24/Proggy Map View 50x35 Zoom Use 0% Tactical HUD 0 Map Filters NONE Filters NONE Steam 1 RUN: af837094-5339-4a66-95e9-975e516b8de7